fUST/lending_fUST_20250206
["ID","MTS","AMOUNT","RATE_DAILY","PERIOD"]
[351762175,1738780240739,-500.0,0.00014492,2]
[351762177,1738780240749,-329.93248114,0.00014492,2]
[351762179,1738780240759,-500.0,0.00014492,2]
[351762181,1738780240768,-500.0,0.00014492,2]
[351762183,1738780240777,-500.0,0.00014492,2]
[351762185,1738780240787,-500.0,0.00014492,2]
[351762187,1738780240796,-506.91672502,0.00014492,2]
[351762189,1738780240806,-500.0,0.00014492,2]
[351762191,1738780240816,-500.0,0.00014492,2]
[351762193,1738780240825,-500.0,0.00014492,2]
[351762195,1738780240835,-500.0,0.00014492,2]
[351762197,1738780240846,-500.0,0.00014492,2]
[351762199,1738780240855,-500.0,0.00014492,2]
[351762201,1738780240864,-500.0,0.00014492,2]
[351762203,1738780240874,-688.53,0.00014492,2]
[351762205,1738780240883,-500.0,0.00014492,2]
[351762207,1738780240894,-500.0,0.00014492,2]
[351762209,1738780240904,-500.0,0.00014492,2]
[351762211,1738780240914,-500.0,0.00014492,2]
[351762213,1738780240923,-671.38,0.00014492,2]
[351762215,1738780240933,-837.98,0.00014492,2]
[351762217,1738780240943,-702.43,0.00014492,2]
[351762220,1738780240953,-522.57205395,0.00014492,2]
[351762222,1738780240963,-1334.37,0.00014492,2]
[351762223,1738780240972,-500.0,0.00014492,2]
[351762225,1738780240982,-509.39038919,0.00014492,2]
[351762227,1738780240991,-540.94,0.00014492,2]
[351762229,1738780241001,-500.0,0.00014492,2]
[351762231,1738780241011,-500.0,0.00014492,2]
[351762233,1738780241021,-382.63498747,0.00014492,2]
[351762235,1738780241030,-500.0,0.00014492,2]
[351762237,1738780241040,-500.0,0.00014492,2]
[351762239,1738780241049,-500.0,0.00014492,2]
[351762241,1738780241060,-500.0,0.00014492,2]
[351762243,1738780241070,-500.0,0.00014492,2]
[351762245,1738780241081,-832.24,0.00014492,2]
[351762247,1738780241090,-500.0,0.00014492,2]
[351762249,1738780241100,-500.0,0.00014492,2]
[351762251,1738780241109,-500.0,0.00014492,2]
[351762254,1738780241120,-500.0,0.00014492,2]
[351762256,1738780241132,-500.0,0.00014492,2]
[351762257,1738780241141,-500.0,0.00014492,2]
[351762260,1738780241150,-500.0,0.00014492,2]
[351762261,1738780241161,-500.0,0.00014492,2]
[351762264,1738780241170,-500.0,0.00014492,2]
[351762266,1738780241179,-522.31791912,0.00014492,2]
[351762268,1738780241189,-502.32749798,0.00014492,2]
[351762270,1738780241200,-500.0,0.00014492,2]
[351762272,1738780241210,-500.0,0.00014492,2]
[351762274,1738780241219,-500.0,0.00014492,2]
[351762276,1738780241228,-500.0,0.00014492,2]
[351762278,1738780241237,-501.71599731,0.00014492,2]
[351762280,1738780241247,-500.0,0.00014492,2]
[351762282,1738780241257,-500.0,0.00014492,2]
[351762284,1738780241266,-701.2,0.00014492,2]
[351762286,1738780241276,-508.79528538,0.00014492,2]
[351762288,1738780241286,-501.74,0.00014492,2]
[351762290,1738780241295,-501.74,0.00014492,2]
[351762292,1738780241305,-501.74,0.00014492,2]
[351762294,1738780241317,-501.74,0.00014492,2]
[351762296,1738780241326,-501.74,0.00014492,2]
[351762298,1738780241336,-501.74,0.00014492,2]
[351762300,1738780241346,-500.0,0.00014492,2]
[351762302,1738780241355,-501.74,0.00014492,2]
[351762304,1738780241364,-501.74,0.00014492,2]
[351762306,1738780241374,-501.74,0.00014492,2]
[351762308,1738780241384,-501.74,0.00014492,2]
[351762310,1738780241393,-501.74,0.00014492,2]
[351762312,1738780241403,-501.74,0.00014492,2]
[351762314,1738780241412,-501.74,0.00014492,2]
[351762316,1738780241422,-501.74,0.00014492,2]
[351762318,1738780241431,-500.0,0.00014492,2]
[351762320,1738780241441,-501.74,0.00014492,2]
[351762322,1738780241450,-501.74,0.00014492,2]
[351762324,1738780241459,-501.74,0.00014492,2]
[351762325,1738780241469,-501.74,0.00014492,2]
[351762327,1738780241479,-501.88097127,0.00014492,2]
[351762329,1738780241488,-500.0,0.00014492,2]
[351762331,1738780241498,-500.0,0.00014492,2]
[351762332,1738780241508,-500.0,0.00014492,2]
[351762333,1738780241518,-500.0,0.00014492,2]
[351762334,1738780241527,-681.38,0.00014492,2]
[351762335,1738780241537,-551.44,0.00014492,2]
[351762336,1738780241546,-500.0,0.00014492,2]
[351762337,1738780241558,-541.03,0.00014492,2]
[351762338,1738780241568,-506.00447112,0.00014492,2]
[351762339,1738780241582,-500.0,0.00014492,2]
[351762340,1738780241592,-501.18248744,0.00014492,2]
[351762341,1738780241602,-500.0,0.00014492,2]
[351762342,1738780241612,-500.0,0.00014492,2]
[351762343,1738780241622,-500.0,0.00014492,2]
[351762344,1738780241631,-500.0,0.00014492,2]
[351762345,1738780241641,-631.58,0.00014492,2]
[351762346,1738780241650,-500.0,0.00014492,2]
[351762347,1738780241660,-500.0,0.00014492,2]
[351762349,1738780241670,-500.0,0.00014492,2]
[351762351,1738780241679,-502.19630505,0.00014492,2]
[351762353,1738780241688,-500.0,0.00014492,2]
[351762354,1738780241698,-500.0,0.00014492,2]
[351762356,1738780241708,-500.0,0.00014492,2]
[351762358,1738780241718,-500.0,0.00014492,2]
[351762360,1738780241727,-500.0,0.00014492,2]
[351762363,1738780241737,-500.0,0.00014492,2]
[351762364,1738780241747,-500.0,0.00014492,2]
[351762367,1738780241756,-500.30604606,0.00014492,2]
[351762369,1738780241766,-500.0,0.00014492,2]
[351762370,1738780241775,-500.0,0.00014492,2]
[351762373,1738780241786,-526.88564986,0.00014492,2]
[351762374,1738780241795,-888.89,0.00014492,2]
[351762376,1738780241805,-507.25171621,0.00014492,2]
[351762378,1738780241815,-500.0,0.00014492,2]
[351762380,1738780241824,-500.0,0.00014492,2]
[351762382,1738780241834,-500.98027932,0.00014492,2]
[351762384,1738780241843,-328.23527834,0.00014492,2]
[351762386,1738780241852,-500.0,0.00014492,2]
[351762388,1738780241862,-500.0,0.00014492,2]
[351762390,1738780241872,-500.0,0.00014492,2]
[351762392,1738780241881,-500.0,0.00014492,2]
[351762394,1738780241892,-831.07,0.00014492,2]
[351762396,1738780241902,-500.0,0.00014492,2]
[351762398,1738780241911,-500.0,0.00014492,2]
[351762400,1738780241920,-500.0,0.00014492,2]
[351762402,1738780241930,-1521.64,0.00014492,2]
[351762404,1738780241940,-500.0,0.00014492,2]
[351762406,1738780241949,-500.0,0.00014492,2]
[351762408,1738780241959,-500.0,0.00014492,2]
[351762410,1738780241968,-500.0,0.00014492,2]
[351762412,1738780241977,-504.98740706,0.00014492,2]
[351762414,1738780241987,-500.0,0.00014492,2]
[351762416,1738780241996,-500.0,0.00014492,2]
[351762418,1738780242006,-500.0,0.00014492,2]
[351762420,1738780242015,-500.0,0.00014492,2]
[351762422,1738780242025,-500.4711566,0.00014492,2]
[351762424,1738780242035,-500.0,0.00014492,2]
[351762426,1738780242044,-500.0,0.00014492,2]
[351762428,1738780242054,-500.0,0.00014492,2]
[351762430,1738780242065,-500.0,0.00014492,2]
[351762432,1738780242075,-500.0,0.00014492,2]
[351762434,1738780242084,-500.0,0.00014492,2]
[351762436,1738780242093,-500.0,0.00014492,2]
[351762438,1738780242103,-485.95503907,0.00014492,2]
[351762440,1738780242112,-500.0,0.00014492,2]
[351762442,1738780242123,-500.0,0.00014492,2]
[351762444,1738780242133,-500.0,0.00014492,2]
[351762446,1738780242143,-500.0,0.00014492,2]
[351762448,1738780242153,-500.0,0.00014492,2]
[351762450,1738780242163,-500.0,0.00014492,2]
[351762452,1738780242172,-500.0,0.00014492,2]
[351762454,1738780242182,-500.0,0.00014492,2]
[351762456,1738780242192,-500.0,0.00014492,2]
[351762458,1738780242202,-1219.15,0.00014492,2]
[351762460,1738780242212,-500.0,0.00014492,2]
[351762462,1738780242222,-500.0,0.00014492,2]
[351762464,1738780242231,-544.7,0.00014492,2]
[351762466,1738780242241,-499.63457526,0.00014492,2]
[351762468,1738780242250,-500.0,0.00014492,2]
[351762470,1738780242260,-500.0,0.00014492,2]
[351762472,1738780242269,-846.52,0.00014492,2]
[351762475,1738780242278,-500.0,0.00014492,2]
[351762477,1738780242288,-223.61797032,0.00014492,2]
[351762479,1738780242298,-500.0,0.00014492,2]
[351762482,1738780242310,-500.0,0.00014492,2]
[351762486,1738780242319,-500.0,0.00014492,2]
[351762489,1738780242329,-729.32,0.00014492,2]
[351762492,1738780242338,-1273.73,0.00014492,2]
[351762495,1738780242348,-500.0,0.00014492,2]
[351762498,1738780242357,-630.52,0.00014492,2]
[351762501,1738780242367,-500.0,0.00014492,2]
[351762504,1738780242376,-500.0,0.00014492,2]
[351762507,1738780242386,-500.0,0.00014492,2]
[351762509,1738780242395,-500.0,0.00014492,2]
[351762512,1738780242405,-500.0,0.00014492,2]
[351762515,1738780242415,-500.0,0.00014492,2]
[351762517,1738780242425,-500.0,0.00014492,2]
[351762519,1738780242434,-1018.17,0.00014492,2]
[351762521,1738780242443,-446.62244191,0.00014492,2]
[351762523,1738780242453,-578.09,0.00014492,2]
[351762525,1738780242463,-500.0,0.00014492,2]
[351762527,1738780242473,-528.36,0.00014492,2]
[351762529,1738780242483,-500.0,0.00014492,2]
[351762531,1738780242493,-500.0,0.00014492,2]
[351762533,1738780242502,-500.0,0.00014492,2]
[351762535,1738780242512,-500.0,0.00014492,2]
[351762537,1738780242522,-500.0,0.00014492,2]
[351762539,1738780242531,-500.0,0.00014492,2]
[351762542,1738780242541,-500.0,0.00014492,2]
[351762546,1738780242551,-1000.0,0.00014492,2]
[351762549,1738780242563,-500.0,0.00014492,2]
[351762551,1738780242572,-500.0,0.00014492,2]
[351762553,1738780242581,-500.0,0.00014492,2]
[351762555,1738780242591,-500.0,0.00014492,2]
[351762557,1738780242600,-793.38,0.00014492,2]
[351762559,1738780242610,-500.0,0.00014492,2]
[351762561,1738780242619,-500.0,0.00014492,2]
[351762563,1738780242628,-877.95,0.00014492,2]
[351762566,1738780242646,-500.0,0.00014492,2]
[351762568,1738780242656,-500.0,0.00014492,2]
[351762570,1738780242665,-500.0,0.00014492,2]
[351762572,1738780242674,-690.82,0.00014492,2]
[351762574,1738780242683,-1862.29,0.00014492,2]
[351762576,1738780242693,-500.0,0.00014492,2]
[351762578,1738780242702,-502.59962938,0.00014492,2]
[351762580,1738780242711,-501.84635472,0.00014492,2]
[351762582,1738780242721,-500.0,0.00014492,2]
[351762584,1738780242730,-520.31082298,0.00014492,2]
[351762586,1738780242739,-500.0,0.00014492,2]
[351762588,1738780242750,-500.0,0.00014492,2]
[351762590,1738780242759,-500.0,0.00014492,2]
[351762592,1738780242770,-500.0,0.00014492,2]
[351762594,1738780242783,-500.0,0.00014492,2]
[351762596,1738780242793,-500.54458456,0.00014492,2]
[351762598,1738780242803,-500.0,0.00014492,2]
[351762600,1738780242815,-1716.79,0.00014492,2]
[351762602,1738780242824,-500.0,0.00014492,2]
[351762604,1738780242834,-249.74,0.00014492,2]
[351762606,1738780242843,-500.0,0.00014492,2]
[351762608,1738780242853,-500.0,0.00014492,2]
[351762610,1738780242868,-188.0,0.00014492,2]
[351762612,1738780242881,-592.54012417,0.00014492,2]
[351762614,1738780242895,-500.0,0.00014492,2]
[351762616,1738780242912,-500.0,0.00014492,2]
[351762618,1738780242922,-500.0,0.00014492,2]
[351762620,1738780242931,-500.0,0.00014492,2]
[351762622,1738780242941,-500.0,0.00014492,2]
[351762624,1738780242950,-500.0,0.00014492,2]
[351762626,1738780242960,-500.0,0.00014492,2]
[351762628,1738780242969,-500.0,0.00014492,2]
[351762630,1738780242979,-502.62023992,0.00014492,2]
[351762632,1738780242989,-872.01,0.00014492,2]
[351762634,1738780242998,-500.0,0.00014492,2]
[351762636,1738780243008,-500.0,0.00014492,2]
[351762638,1738780243018,-1050.26,0.00014492,2]
[351762640,1738780243027,-500.0,0.00014492,2]
[351762642,1738780243036,-178.0216987,0.00014492,2]
[351762644,1738780243046,-500.0,0.00014492,2]
[351762645,1738780243056,-500.0,0.00014492,2]
[351762647,1738780243069,-500.0,0.00014492,2]
[351762649,1738780243079,-500.0,0.00014492,2]
[351762652,1738780243088,-500.0,0.00014492,2]
[351762656,1738780243098,-500.0,0.00014492,2]
[351762658,1738780243107,-300.0,0.00014492,2]
[351762662,1738780243117,-500.0,0.00014492,2]
[351762666,1738780243129,-580.11,0.00014492,2]
[351762670,1738780243138,-500.0,0.00014492,2]
[351762674,1738780243148,-500.0,0.00014492,2]
[351762676,1738780243159,-500.0,0.00014492,2]
[351762678,1738780243168,-500.0,0.00014492,2]
[351762680,1738780243178,-500.0,0.00014492,2]
[351762682,1738780243187,-500.0,0.00014492,2]
[351762685,1738780243199,-500.0,0.00014492,2]
[351762686,1738780243208,-500.0,0.00014492,2]
[351762688,1738780243217,-500.0,0.00014492,2]
[351762690,1738780243227,-301.81898632,0.00014492,2]
[351762693,1738780243237,-500.0,0.00014492,2]
[351762694,1738780243247,-500.0,0.00014492,2]
[351762697,1738780243256,-500.0,0.00014492,2]
[351762698,1738780243266,-500.0,0.00014492,2]
[351762701,1738780243276,-459.21395355,0.00014492,2]
[351762703,1738780243285,-500.0,0.00014493,2]
[351762704,1738780243295,-526.51,0.00014493,2]
[351762706,1738780243304,-766.94,0.00014493,2]
[351762709,1738780243318,-500.0,0.00014493,2]
[351762711,1738780243327,-566.76,0.00014493,2]
[351762713,1738780243337,-1797.93,0.00014493,2]
[351762715,1738780243346,-500.0,0.00014493,2]
[351762717,1738780243357,-500.0,0.00014493,2]
[351762719,1738780243371,-500.0,0.00014493,2]
[351762721,1738780243383,-880.96,0.00014493,2]
[351762723,1738780243392,-912.41,0.00014493,2]
[351762725,1738780243402,-500.0,0.00014493,2]
[351762727,1738780243412,-2418.13,0.00014493,2]
[351762729,1738780243422,-500.0,0.00014493,2]
[351762731,1738780243432,-501.44963769,0.00014493,2]
[351762733,1738780243441,-510.38444078,0.00014493,2]
[351762734,1738780243451,-500.0,0.00014493,2]
[351762736,1738780243460,-505.14936998,0.00014493,2]
[351762738,1738780243470,-500.0,0.00014493,2]
[351762740,1738780243480,-500.0,0.00014493,2]
[351762742,1738780243490,-660.44,0.00014493,2]
[351762745,1738780243500,-500.0,0.00014493,2]
[351762747,1738780243510,-500.0,0.00014493,2]
[351762748,1738780243520,-500.0,0.00014493,2]
[351762750,1738780243531,-1080.47,0.00014493,2]
[351762752,1738780243541,-500.0,0.00014493,2]
[351762754,1738780243550,-500.22088784,0.00014493,2]
[351762756,1738780243563,-544.53,0.00014493,2]
[351762772,1738780243573,-1257.42,0.00014493,2]
[351762774,1738780243721,-500.0,0.00014493,2]
[351762776,1738780243731,-749.42,0.00014493,2]
[351762778,1738780243741,-500.0,0.00014493,2]
[351762780,1738780243751,-4056.8,0.00014493,2]
[351762782,1738780243761,-500.0,0.00014493,2]
[351762784,1738780243770,-500.0,0.00014493,2]
[351762786,1738780243780,-4236.29,0.00014493,2]
[351762788,1738780243790,-664.16,0.00014493,2]
[351762790,1738780243800,-500.0,0.00014493,2]
[351762792,1738780243811,-1486.18,0.00014493,2]
[351762794,1738780243821,-500.0,0.00014493,2]
[351762796,1738780243831,-500.0,0.00014493,2]
[351762798,1738780243841,-818.55,0.00014493,2]
[351762800,1738780243850,-501.22673616,0.00014493,2]
[351762802,1738780243860,-500.0,0.00014493,2]
[351762804,1738780243870,-1094.31,0.00014493,2]
[351762806,1738780243880,-939.06,0.00014493,2]
[351762808,1738780243890,-405.8795387,0.00014493,2]
[351762810,1738780243899,-3936.23,0.00014493,2]
[351762812,1738780243910,-500.0,0.00014493,2]
[351762814,1738780243919,-500.0,0.00014493,2]
[351762816,1738780243928,-500.0,0.00014493,2]
[351762818,1738780243938,-500.0,0.00014493,2]
[351762820,1738780243948,-1529.85,0.00014493,2]
[351762822,1738780243958,-1124.81,0.00014493,2]
[351762824,1738780243968,-500.0,0.00014493,2]
[351762826,1738780243979,-500.0,0.00014493,2]
[351762828,1738780243988,-500.0,0.00014493,2]
[351762830,1738780243998,-500.0,0.00014493,2]
[351762832,1738780244009,-500.0,0.00014493,2]
[351762834,1738780244019,-514.93,0.00014493,2]
[351762836,1738780244029,-687.48,0.00014493,2]
[351762838,1738780244038,-500.0,0.00014493,2]
[351762840,1738780244048,-500.0,0.00014493,2]
[351762842,1738780244059,-676.11,0.00014493,2]
[351762844,1738780244070,-2003.06,0.00014493,2]
[351762846,1738780244080,-559.73,0.00014493,2]
[351762848,1738780244089,-500.0,0.00014493,2]
[351762849,1738780244099,-500.0,0.00014493,2]
[351762850,1738780244108,-542.27,0.00014493,2]
[351762851,1738780244121,-964.47,0.00014493,2]
[351762852,1738780244131,-500.0,0.00014493,2]
[351762854,1738780244140,-3974.21,0.00014493,2]
[351762856,1738780244149,-1220.28,0.00014493,2]
[351762858,1738780244159,-477.23054919,0.00014495,2]
[351762860,1738780244169,-436.66818008,0.00014495,2]
[351762862,1738780244179,-500.0,0.00014495,2]
[351762864,1738780244189,-206.53333869,0.00014495,2]
[351762866,1738780244199,-500.0,0.00014495,2]
[351762868,1738780244210,-500.0,0.00014495,2]
[351762870,1738780244219,-500.0,0.00014495,2]
[351762872,1738780244228,-500.0,0.00014495,2]
[351762874,1738780244238,-515.09877908,0.00014495,2]
[351762876,1738780244248,-500.0,0.00014495,2]
[351762878,1738780244261,-500.0,0.00014495,2]
[351762880,1738780244271,-500.0,0.00014495,2]
[351762882,1738780244280,-500.0,0.00014495,2]
[351762884,1738780244290,-500.0,0.00014495,2]
[351762887,1738780244299,-500.0,0.00014495,2]
[351762889,1738780244311,-566.03,0.00014495,2]
[351762890,1738780244320,-500.0,0.00014495,2]
[351762893,1738780244330,-500.0,0.00014495,2]
[351762895,1738780244340,-1030.68,0.00014495,2]
[351762897,1738780244350,-720.33,0.00014495,2]
[351762899,1738780244360,-500.0,0.00014495,2]
[351762900,1738780244369,-500.0,0.00014495,2]
[351762903,1738780244379,-500.0,0.00014495,2]
[351762905,1738780244388,-500.0,0.00014495,2]
[351762906,1738780244398,-500.0,0.00014495,2]
[351762909,1738780244408,-1963.62,0.00014495,2]
[351762911,1738780244417,-500.0,0.00014495,2]
[351762913,1738780244427,-340.1928242,0.00014495,2]
[351762915,1738780244437,-500.0,0.00014495,2]
[351762917,1738780244447,-500.0,0.00014495,2]
[351762919,1738780244456,-500.0,0.00014495,2]
[351762921,1738780244466,-500.0,0.00014495,2]
[351762923,1738780244477,-500.0,0.00014495,2]
[351762925,1738780244487,-977.47,0.00014495,2]
[351762927,1738780244497,-607.96,0.00014495,2]
[351762929,1738780244507,-500.0,0.00014495,2]
[351762931,1738780244517,-549.77759903,0.00014495,2]
[351762933,1738780244527,-761.38,0.00014495,2]
[351762935,1738780244537,-500.0,0.00014495,2]
[351762937,1738780244547,-1001.28,0.00014495,2]
[351762939,1738780244557,-1000.0,0.00014495,2]
[351762941,1738780244568,-500.0,0.00014495,2]
[351762944,1738780244577,-695.48,0.00014495,2]
[351762946,1738780244587,-500.0,0.00014495,2]
[351762947,1738780244597,-513.03769392,0.00014495,2]
[351762949,1738780244606,-500.0,0.00014495,2]
[351762952,1738780244618,-500.0,0.00014495,2]
[351762954,1738780244627,-500.0,0.00014495,2]
[351762956,1738780244637,-500.0,0.00014495,2]
[351762958,1738780244647,-500.0,0.00014495,2]
[351762960,1738780244656,-500.0,0.00014495,2]
[351762962,1738780244666,-500.0,0.00014495,2]
[351762964,1738780244676,-500.0,0.00014495,2]
[351762966,1738780244687,-500.0,0.00014495,2]
[351762968,1738780244697,-500.0,0.00014495,2]
[351762970,1738780244707,-500.0,0.00014495,2]
[351762972,1738780244717,-500.0,0.00014495,2]
[351762974,1738780244726,-500.0,0.00014495,2]
[351762976,1738780244736,-500.0,0.00014495,2]
[351762978,1738780244746,-514.99960741,0.00014495,2]
[351762980,1738780244755,-500.0,0.00014495,2]
[351762982,1738780244765,-500.0,0.00014495,2]
[351762984,1738780244774,-500.0,0.00014495,2]
[351762986,1738780244784,-956.93,0.00014495,2]
[351762988,1738780244793,-500.0,0.00014495,2]
[351762990,1738780244803,-500.0,0.00014495,2]
[351762992,1738780244816,-500.0,0.00014495,2]
[351762994,1738780244826,-500.0,0.00014495,2]
[351762996,1738780244836,-500.0,0.00014495,2]
[351762999,1738780244846,-500.0,0.00014495,2]
[351763000,1738780244855,-500.0,0.00014495,2]
[351763002,1738780244865,-500.0,0.00014495,2]
[351763005,1738780244875,-500.0,0.00014495,2]
[351763006,1738780244884,-438.22386094,0.00014495,2]
[351763009,1738780244895,-500.0,0.00014495,2]
[351763011,1738780244905,-500.0,0.00014495,2]
[351763013,1738780244914,-500.0,0.00014495,2]
[351763015,1738780244923,-500.0,0.00014495,2]
[351763016,1738780244932,-1018.9,0.00014495,2]
[351763018,1738780244942,-1391.08,0.00014495,2]
[351763021,1738780244953,-500.0,0.00014495,2]
[351763022,1738780244962,-500.0,0.00014495,2]
[351763024,1738780244972,-500.0,0.00014495,2]
[351763027,1738780244981,-505.44800151,0.00014495,2]
[351763029,1738780244990,-507.95164527,0.00014495,2]
[351763031,1738780245000,-500.0,0.00014495,2]
[351763033,1738780245010,-500.0,0.00014495,2]
[351763035,1738780245021,-500.0,0.00014495,2]
[351763037,1738780245031,-500.0,0.00014495,2]
[351763039,1738780245043,-502.94517475,0.00014495,2]
[351763041,1738780245054,-211.74345682,0.00014495,2]
[351763043,1738780245066,-503.79388325,0.00014495,2]
[351763045,1738780245076,-321.82871719,0.00014495,2]
[351763047,1738780245086,-500.0,0.00014495,2]
[351763049,1738780245096,-768.39,0.00014495,2]
[351763051,1738780245106,-500.0,0.00014495,2]
[351763054,1738780245117,-500.0,0.00014495,2]
[351763056,1738780245131,-500.0,0.00014495,2]
[351763058,1738780245142,-500.0,0.00014495,2]
[351763060,1738780245153,-500.0,0.00014495,2]
[351763062,1738780245163,-500.0,0.00014495,2]
[351763064,1738780245174,-500.0,0.00014495,2]
[351763066,1738780245183,-968.63,0.00014495,2]
[351763068,1738780245193,-500.0,0.00014495,2]
[351763070,1738780245203,-500.0,0.00014495,2]
[351763072,1738780245214,-500.0,0.00014495,2]
[351763074,1738780245226,-500.0,0.00014495,2]
[351763076,1738780245236,-540.91309947,0.00014495,2]
[351763078,1738780245245,-500.0,0.00014495,2]
[351763080,1738780245255,-500.73042443,0.00014495,2]
[351763082,1738780245265,-577.96,0.00014495,2]
[351763085,1738780245275,-500.0,0.00014495,2]
[351763087,1738780245285,-500.0,0.00014495,2]
[351763088,1738780245295,-571.8211526,0.00014495,2]
[351763091,1738780245305,-578.61075515,0.00014495,2]
[351763093,1738780245318,-500.0,0.00014495,2]
[351763095,1738780245328,-500.0,0.00014495,2]
[351763097,1738780245338,-500.0,0.00014495,2]
[351763099,1738780245348,-500.0,0.00014495,2]
[351763101,1738780245358,-500.0,0.00014496,2]
[351763104,1738780245367,-500.0,0.00014523,7]
[351763107,1738780245377,-500.0,0.00014523,7]
[351763110,1738780245386,-500.0,0.00014523,7]
[351763113,1738780245397,-500.0,0.00014523,7]
[351763115,1738780245407,-500.0,0.00014523,7]
[351763118,1738780245417,-500.0,0.00014523,7]
[351763121,1738780245427,-500.0,0.00014523,7]
[351763124,1738780245437,-195.73,0.00014523,7]
[351763127,1738780245448,-154.25742692,0.00014528,2]
[351763130,1738780245458,-154.25742692,0.00014528,2]
[351763133,1738780245468,-154.25742692,0.00014528,2]
[351763136,1738780245477,-154.25742692,0.00014528,2]
[351763140,1738780245487,-154.25742692,0.00014528,2]
[351763144,1738780245496,-154.25742692,0.00014528,2]
[351763148,1738780245505,-154.25742692,0.00014528,2]
[351763153,1738780245515,-154.25742692,0.00014528,2]
[351763156,1738780245526,-154.25742692,0.00014528,2]
[351763159,1738780245535,-154.25742692,0.00014528,2]
[351763161,1738780245544,-154.25742692,0.00014528,2]
[351763166,1738780245554,-154.25742692,0.00014528,2]
[351763169,1738780245563,-154.25742692,0.00014528,2]
[351763172,1738780245574,-154.25742692,0.00014528,2]
[351763175,1738780245584,-154.25742692,0.00014528,2]
[351763178,1738780245594,-154.25742692,0.00014528,2]
[351763181,1738780245605,-154.25742692,0.00014528,2]
[351763184,1738780245614,-154.25,0.00014528,2]
[351763187,1738780245624,-930.51541008,0.0001453,2]
[351763190,1738780245634,-500.0,0.00014626,2]
[351763193,1738780245645,-2168.55,0.00014626,2]
[351763196,1738780245655,-1348.91,0.00014626,2]
[351763199,1738780245664,-1024.87,0.00014626,2]
[351763202,1738780245674,-500.0,0.00014626,2]
[351763205,1738780245683,-3152.07,0.00014626,2]
[351763208,1738780245693,-500.0,0.00014626,2]
[351763211,1738780245702,-500.0,0.00014626,2]
[351763214,1738780245712,-706.02,0.00014626,2]
[351763217,1738780245722,-8777.85,0.00014626,2]
[351763220,1738780245733,-702.4,0.00014626,2]
[351763223,1738780245743,-500.0,0.00014626,2]
[351763226,1738780245753,-500.0,0.00014626,2]
[351763229,1738780245763,-703.26,0.00014626,2]
[351763232,1738780245774,-636.75,0.00014627,2]
[351763235,1738780245784,-15673.47,0.00014627,2]
[351763238,1738780245794,-501.49,0.00014627,2]
[351763242,1738780245804,-500.0,0.00014627,2]
[351763245,1738780245817,-6066.1,0.00014627,2]
[351763247,1738780245827,-7677.8,0.00014627,2]
[351763251,1738780245837,-3276.94,0.00014627,2]
[351763254,1738780245849,-500.0,0.00014627,2]